bitfinex/quotes_SOLUSD_20250508
["timestamp","ask_amount","ask_price","bid_price","bid_amount"]
[1746724939957,18.76746109,160.07,160.04,26.0]
[1746724940154,18.76746109,160.08,160.04,26.0]
[1746724940545,18.76746109,160.08,160.04,44.76746109]
[1746724941054,25.01436699,160.08,160.04,44.76746109]
[1746724942459,25.01436699,160.08,160.04,26.0]
[1746724942760,25.01436699,160.08,160.04,44.76746109]
[1746724943664,18.76746109,160.07,160.04,26.0]
[1746724943875,18.76746109,160.06,160.02,18.76746109]
[1746724944360,18.76746109,160.06,160.01,32.24955581]
[1746724944543,18.76746109,160.06,160.02,18.76746109]
[1746724944745,18.76746109,160.07,160.02,18.76746109]
[1746724945168,18.76746109,160.06,160.02,18.76746109]
[1746724945369,18.76746109,160.05,160.01,44.76746109]
[1746724945550,18.76746109,160.06,160.01,44.76746109]
[1746724945873,18.76746109,160.06,160.02,18.76746109]
[1746724946106,18.76746109,160.07,160.02,18.76746109]
[1746724946244,18.76746109,160.07,160.02,25.01651997]
[1746724946547,25.01482219,160.07,160.02,25.01651997]
[1746724947866,25.01482219,160.07,160.02,18.76746109]
[1746724948182,18.76746109,160.06,160.01,51.01691776]
[1746724948342,18.76746109,160.06,160.01,44.76746109]
[1746724948543,18.76746109,160.05,160.01,44.76746109]
[1746724950268,25.01524232,160.06,160.01,51.01702276]
[1746724950777,25.01524232,160.06,160.01,44.76746109]
[1746724951777,25.01524232,160.06,160.01,51.0170482]
[1746724952272,25.01524232,160.06,160.01,44.76746109]
[1746724952461,18.76746109,160.05,160.0,18.76746109]
[1746724952655,18.76746109,160.05,160.0,25.01734641]
[1746724952862,18.76746109,160.05,160.0,6.24988532]
[1746724953048,18.76746109,160.05,159.99,82.25023653]
[1746724953253,18.76746109,160.03,159.99,26.0]
[1746724953448,18.76746109,160.02,159.97,25.01839281]
[1746724953667,136.4,160.05,159.98,18.76746109]
[1746724953969,27.75046157,160.09,159.97,6.25093172]
[1746724953970,7.85493496,160.09,160.04,18.76746109]
[1746724954171,26.62239605,160.09,160.04,18.76746109]
[1746724954351,18.76746109,160.08,160.03,18.76746109]
[1746724954554,18.76746109,160.08,160.03,25.01601816]
[1746724955767,18.76746109,160.05,159.99,76.0]
[1746724955964,18.76746109,160.05,160.0,25.01746109]
[1746724956143,18.76746109,160.05,159.99,76.0]
[1746724956144,18.76746109,160.03,159.99,51.01771719]
[1746724956350,18.76746109,160.02,159.96,6.6087]
[1746724956573,18.76746109,160.02,159.97,25.01850527]
[1746724956777,25.01648863,160.03,159.98,18.76746109]
[1746724957482,6.24902754,160.03,159.97,32.25104418]
[1746724957686,18.76746109,160.04,159.99,18.76746109]
[1746724957888,18.76746109,160.03,159.99,18.76746109]
[1746724958383,6.24726682,160.07,160.01,18.76746109]
[1746724958692,6.24790308,160.06,160.01,18.76746109]
[1746724958871,25.01536417,160.06,160.01,18.76746109]
[1746724959075,18.76746109,160.05,160.0,6.24971141]
[1746724959261,18.76746109,160.05,160.0,25.0171725]
[1746724959458,6.5023,160.08,160.02,18.76746109]
[1746724959679,6.24702533,160.08,160.03,18.76746109]
[1746724959982,18.76746109,160.07,160.0,82.24971141]
[1746724960164,18.76746109,160.07,160.02,18.76746109]
[1746724960564,25.01496391,160.07,160.02,18.76746109]
[1746724960970,18.76746109,160.06,160.01,18.76746109]
[1746724961290,18.76746109,160.06,160.01,25.01694666]
[1746724961777,18.76746109,160.06,160.01,18.76746109]
[1746724961976,18.76746109,160.05,160.0,44.76746109]
[1746724962881,18.76746109,160.05,160.0,51.01730514]
[1746724963062,25.01566066,160.05,160.0,51.01730514]
[1746724964363,18.76746109,160.05,160.0,51.01730514]
[1746724964565,16.9483,160.09,160.03,18.76746109]
[1746724964566,1.6083,160.09,160.03,18.76746109]
[1746724964871,18.76746109,160.07,160.02,18.76746109]
[1746724966191,18.76746109,160.07,160.01,56.24923467]
[1746724966487,18.76746109,160.07,160.02,18.76746109]
[1746724967068,25.01500221,160.07,160.02,18.76746109]
[1746724967790,25.01500221,160.07,160.02,25.01667594]
[1746724967997,25.01500221,160.07,160.02,18.76746109]
[1746724968490,6.24754112,160.07,160.03,18.76746109]
[1746724969062,25.01500221,160.07,160.02,25.01651021]
[1746724970590,25.01500221,160.07,160.01,56.24947746]
[1746724970888,18.76746109,160.07,160.03,18.76746109]
[1746724971895,25.01482192,160.07,160.03,18.76746109]
[1746724972079,6.24687656,160.08,160.03,18.76746109]
[1746724972279,18.76746109,160.07,160.03,18.76746109]
[1746724973386,25.01403806,160.09,160.04,18.76746109]
[1746724973985,25.01403806,160.09,160.03,6.24882516]
[1746724974488,25.01403806,160.09,160.04,25.01575894]
[1746724974995,25.01403806,160.09,160.04,18.76746109]
[1746724975296,6.24657697,160.09,160.05,18.76746109]
[1746724975484,168.77789554,160.1,160.05,18.76746109]
[1746724975793,168.77789554,160.1,160.06,18.76746109]
[1746724975993,168.77789554,160.1,160.03,82.24869444]
[1746724975994,168.77789554,160.1,160.05,18.76746109]
[1746724976800,168.77789554,160.1,160.05,25.01541967]
[1746724977096,143.76420277,160.1,160.06,18.76746109]
[1746724977680,7.36420277,160.1,160.06,18.76746109]
[1746724978897,13.6103155,160.1,160.06,18.76746109]
[1746724980003,7.36420277,160.1,160.06,25.01504758]
[1746724980804,7.36420277,160.1,160.07,18.76746109]
[1746724981303,7.36420277,160.1,160.06,6.24758649]
[1746724981605,7.36420277,160.1,160.08,18.76746109]
[1746724981905,7.36420277,160.1,160.06,6.24758649]
[1746724982105,7.36420277,160.1,160.07,18.76746109]
[1746724982288,7.36420277,160.1,160.08,18.76746109]
[1746724982674,7.36420277,160.1,160.07,18.76746109]
[1746724982874,7.36420277,160.1,160.08,18.76746109]
[1746724983104,136.4,160.14,160.09,18.76746109]
[1746724983485,136.4,160.14,160.12,18.76746109]
[1746724983889,136.4,160.14,160.11,18.76746109]
[1746724984501,136.4,160.14,160.12,18.76746109]
[1746724984708,136.4,160.14,160.11,18.76746109]
[1746724986411,142.64468411,160.14,160.09,26.0]
[1746724986606,161.4121452,160.14,160.09,51.01394501]
[1746724986782,155.16746109,160.14,160.09,51.01394501]
[1746724986989,155.16746109,160.14,160.1,18.76746109]
[1746724987811,136.4,160.14,160.1,18.76746109]
[1746724988309,136.4,160.14,160.1,25.0134529]
[1746724988688,161.41206792,160.14,160.08,6.4232]
[1746724988885,18.76746109,160.12,160.08,26.0]
[1746724989183,142.64460683,160.14,160.08,51.01407648]
[1746724989388,18.76746109,160.13,160.08,51.01407648]
[1746724992415,136.4,160.14,160.09,18.76746109]
[1746724992885,155.16746109,160.14,160.09,18.76746109]
[1746724993086,18.76746109,160.13,160.08,51.01407648]
[1746724994420,136.4,160.14,160.08,51.01407648]
[1746724994708,18.76746109,160.13,160.08,51.01407648]
[1746724994884,18.76746109,160.13,160.08,32.24661539]
[1746724995091,18.76746109,160.13,160.08,51.01407648]
[1746724995292,18.76746109,160.13,160.08,32.24661539]
[1746724995591,18.76746109,160.13,160.08,51.01407648]
[1746724996407,155.16746109,160.14,160.1,6.24609618]
[1746724996913,155.16746109,160.14,160.1,25.01355727]
[1746724997910,136.4,160.14,160.1,6.24609618]
[1746724998105,155.16746109,160.14,160.1,6.24609618]
[1746724998642,18.76746109,160.14,160.1,6.24609618]
[1746724999104,18.76746109,160.15,160.1,25.01355727]
[1746724999496,25.01138308,160.16,160.11,18.76746109]
[1746724999715,18.76746109,160.15,160.1,25.01355727]
[1746725000111,6.24392199,160.16,160.1,25.01355727]
[1746725000310,136.4,160.18,160.12,25.0127771]
[1746725000619,18.76746109,160.16,160.11,51.0130606]
[1746725001312,142.64310484,160.18,160.12,18.76746109]
[1746725001496,136.4,160.18,160.13,18.76746109]
[1746725001809,0.14216157,160.2,160.14,26.0]
[1746725002109,18.90962266,160.2,160.15,18.76746109]
[1746725002311,18.76746109,160.17,160.1,6.3775]
[1746725002510,18.76746109,160.15,160.11,18.76746109]
[1746725002913,18.64964886,160.18,160.11,44.76746109]
[1746725002914,18.76746109,160.16,160.11,44.76746109]
[1746725003827,18.76746109,160.16,160.11,51.01304777]
[1746725005526,18.76746109,160.16,160.12,18.76746109]
[1746725005729,18.76746109,160.16,160.11,32.24558668]
[1746725005730,6.38444237,160.2,160.14,18.76746109]
[1746725005899,18.76746109,160.18,160.13,18.76746109]
[1746725006631,18.76746109,160.18,160.11,32.24558668]
[1746725006632,18.76746109,160.17,160.11,32.24558668]
[1746725006805,18.76746109,160.16,160.12,18.76746109]
[1746725007303,18.76746109,160.16,160.11,32.24558668]
[1746725007503,18.76746109,160.16,160.11,51.01304777]
[1746725007704,18.76746109,160.16,160.11,32.24558668]
[1746725007930,18.76746109,160.13,160.11,26.0]
[1746725008110,18.76746109,160.13,160.1,6.24597866]
[1746725008317,18.76746109,160.13,160.09,32.24633644]
[1746725009834,136.4,160.17,160.09,6.24633644]
[1746725009835,18.76746109,160.11,160.09,6.24633644]
[1746725010332,18.76746109,160.12,160.09,6.24633644]
[1746725010715,18.76746109,160.12,160.08,6.24675233]
[1746725012733,18.76746109,160.12,160.08,25.01421342]
[1746725013238,18.76746109,160.12,160.08,6.24675233]
[1746725014141,24.89379497,160.15,160.08,6.24675233]
[1746725014437,18.76746109,160.12,160.08,25.01421342]
[1746725014620,18.76746109,160.11,160.08,6.24675233]
[1746725014935,24.89379497,160.15,160.08,6.24675233]
[1746725015115,18.76746109,160.12,160.08,25.01421342]
[1746725015321,18.76746109,160.09,160.06,26.0]
[1746725015629,18.76746109,160.08,160.03,24.80356109]
[1746725015826,18.76746109,160.08,160.03,50.80356109]
[1746725016025,18.76746109,160.07,160.03,26.0]
[1746725016230,18.76746109,160.07,160.03,32.24869002]
[1746725016445,1.5764,160.1,160.03,51.01615111]
[1746725016615,1.5764,160.1,160.04,18.76746109]
[1746725016817,18.76746109,160.08,160.03,51.01615111]
[1746725017035,1.5764,160.1,160.03,51.01615111]
[1746725017217,18.76746109,160.08,160.03,51.01615111]
[1746725018033,18.76746109,160.07,160.03,51.01615111]
[1746725018616,18.76746109,160.07,160.03,32.24869002]
[1746725020718,7.82266051,160.1,160.03,32.24869002]
[1746725020933,18.76746109,160.07,160.03,32.24869002]
[1746725021737,7.82266051,160.1,160.03,32.24869002]
[1746725021951,18.76746109,160.07,160.03,32.24869002]
[1746725023041,18.76746109,160.08,160.03,32.24869002]
[1746725023217,18.76746109,160.07,160.03,32.24869002]
[1746725023732,18.76746109,160.07,160.03,51.01615111]
[1746725027316,18.76746109,160.07,160.03,32.24869002]
[1746725030846,18.76746109,160.06,160.03,32.24869002]
[1746725031420,18.76746109,160.04,159.98,6.25078134]
[1746725031646,18.76746109,160.02,159.98,25.01824243]
[1746725031838,18.76746109,160.02,159.98,51.01824243]
[1746725032223,18.76746109,160.02,159.98,25.01824243]
[1746725032546,18.76746109,160.02,159.99,26.0]
[1746725032843,18.76746109,160.02,159.98,25.01824243]
[1746725033350,18.76746109,160.02,159.97,32.2510279]
[1746725033648,1.5396,160.04,159.97,32.2510279]
[1746725033855,18.76746109,160.0,159.97,32.2510279]
[1746725034050,18.76746109,160.0,159.97,26.0]
[1746725034542,18.76746109,160.0,159.96,25.01888008]
[1746725034750,18.76746109,160.0,159.96,6.25141899]
[1746725034924,18.76746109,159.98,159.95,6.25195373]
[1746725035950,18.76746109,159.98,159.95,32.25195373]
[1746725036650,18.76746109,159.98,159.95,26.0]
[1746725036834,18.76746109,159.98,159.95,32.25185873]
[1746725037635,18.76746109,159.98,159.95,6.25185873]
[1746725037944,18.76746109,159.97,159.94,6.25225715]
[1746725038336,18.76746109,159.98,159.94,6.25225715]
[1746725040351,18.76746109,159.98,159.94,25.01971824]
[1746725041447,18.76746109,159.99,159.94,25.01971824]
[1746725042854,18.76746109,159.99,159.94,6.25225715]
[1746725043043,25.01794531,159.99,159.94,25.01971824]
[1746725043242,18.76746109,159.99,159.94,25.01971824]
[1746725044749,18.76746109,159.99,159.95,25.0193204]
[1746725045846,136.4,160.02,159.95,25.0193204]
[1746725046036,18.76746109,160.01,159.97,18.76746109]
[1746725046343,136.4,160.02,159.98,18.76746109]
[1746725046531,155.16746109,160.02,159.97,18.76746109]
[1746725048249,155.16746109,160.02,159.98,6.25078134]
[1746725048847,18.76746109,160.01,159.97,25.01858076]
[1746725049044,18.76746109,160.0,159.97,6.25111967]
[1746725049549,18.76746109,160.01,159.97,6.25111967]
[1746725049850,18.76746109,160.01,159.97,25.01858076]
[1746725050649,136.4,160.02,159.97,25.01858076]
[1746725050957,136.4,160.06,160.01,18.76746109]
[1746725051136,7.4232637,160.07,160.02,18.76746109]
[1746725051339,7.4232637,160.07,160.04,18.76746109]
[1746725051738,7.4232637,160.07,160.03,44.76746109]
[1746725051932,26.19072479,160.07,160.03,26.0]
[1746725052131,26.19072479,160.07,160.03,44.76746109]
[1746725052332,26.19072479,160.07,160.03,26.0]
[1746725052850,26.19072479,160.07,160.03,44.76746109]
[1746725053031,26.19072479,160.07,160.03,51.01623128]
[1746725054651,7.4232637,160.07,160.03,51.01623128]
[1746725055459,26.19072479,160.07,160.03,51.01623128]
[1746725056143,7.4232637,160.07,160.03,51.01623128]
[1746725056544,7.4232637,160.07,160.04,18.76746109]
[1746725057554,26.19072479,160.07,160.03,26.0]
[1746725057758,18.76746109,160.06,160.01,32.24930146]
[1746725057962,18.76746109,160.06,160.02,18.76746109]
[1746725059366,18.76746109,160.07,160.03,18.76746109]
[1746725059538,18.76746109,160.07,160.03,25.0161116]
[1746725059733,18.76746109,160.07,160.03,6.24865051]
[1746725059963,18.76746109,160.06,160.02,25.01657302]
[1746725060163,18.76746109,160.06,160.02,6.24911193]
[1746725060747,18.76746109,160.06,160.02,25.01657302]
[1746725062976,24.89613521,160.09,160.02,25.01657302]
[1746725063262,18.76746109,160.06,160.02,18.76746109]
[1746725063562,18.76746109,160.06,160.02,25.01663661]
[1746725064675,18.76746109,160.05,160.01,26.0]
[1746725064856,18.76746109,160.04,160.01,26.0]
[1746725065257,18.76746109,160.04,160.01,32.24954242]
[1746725065458,18.76746109,160.05,160.01,32.24954242]
[1746725068453,18.76746109,160.05,160.01,51.01700351]
[1746725070674,18.76746109,160.07,160.02,18.76746109]
[1746725071650,18.76746109,160.06,160.02,18.76746109]
[1746725071982,18.76746109,160.06,160.02,25.01631178]
[1746725073172,6.24697705,160.08,160.02,25.01631178]
[1746725073368,18.76746109,160.07,160.02,25.01631178]
[1746725074570,18.76746109,160.07,160.03,18.76746109]
[1746725074867,18.76746109,160.08,160.03,18.76746109]
[1746725075047,7.59412425,160.09,160.02,6.24885069]
[1746725075048,26.36158534,160.09,160.04,18.76746109]
[1746725076075,18.76746109,160.08,160.05,6.24804748]
[1746725077674,18.76746109,160.07,160.03,18.76746109]
[1746725077873,18.76746109,160.07,160.02,25.01667993]
[1746725079178,13.84065894,160.09,160.02,25.01667993]
[1746725079474,18.76746109,160.07,160.02,25.01667993]
[1746725081881,18.76746109,160.05,160.01,6.24953436]
[1746725082177,18.76746109,160.04,160.0,25.01733522]
[1746725082377,18.76746109,160.04,160.0,51.01733522]
[1746725082761,18.76746109,160.04,160.0,32.24987413]
[1746725083187,25.01595519,160.04,160.0,26.0]
[1746725083389,18.76746109,160.02,159.98,26.0]
[1746725083682,18.76746109,160.01,159.97,6.25100301]
[1746725083862,18.76746109,160.02,159.97,25.0184641]
[1746725084666,18.76746109,160.03,159.98,6.25058239]
[1746725084868,18.76746109,160.02,159.98,25.01804348]
[1746725085070,18.76746109,160.02,159.97,25.018466]
[1746725086391,18.76746109,160.02,159.98,18.76746109]
[1746725088189,156.60794886,160.06,159.98,18.76746109]
[1746725088388,136.4,160.06,160.04,18.76746109]
[1746725088575,7.57095335,160.08,160.04,25.01588472]
[1746725089386,18.76746109,160.07,160.02,18.76746109]
[1746725089593,18.76746109,160.07,160.01,26.0]
[1746725089773,18.76746109,160.07,160.02,18.76746109]
[1746725090497,18.76746109,160.07,160.02,25.01667993]
[1746725091499,18.76746109,160.06,160.01,32.24948352]
[1746725091794,18.76746109,160.06,160.01,51.01694461]
[1746725092696,1.5739,160.1,160.01,51.01694461]
[1746725092697,24.89613521,160.09,160.04,18.76746109]
[1746725092998,18.76746109,160.09,160.04,18.76746109]
[1746725093172,18.76746109,160.08,160.03,18.76746109]
[1746725093378,18.76746109,160.08,160.04,18.76746109]
[1746725093704,18.76746109,160.08,160.03,18.76746109]
[1746725094203,18.76746109,160.07,160.02,18.76746109]
[1746725094897,18.76746109,160.07,160.02,25.01639078]
[1746725095115,18.76746109,160.07,160.02,6.24892969]
[1746725095279,18.76746109,160.07,160.03,18.76746109]
[1746725096697,6.24648635,160.09,160.03,25.01618753]
[1746725097005,18.76746109,160.08,160.03,25.01618753]
[1746725097378,136.4,160.1,160.07,18.76746109]
[1746725097783,18.76746109,160.12,160.07,18.76746109]
[1746725098185,18.76746109,160.11,160.07,26.0]
[1746725098587,18.76746109,160.09,160.07,26.0]
[1746725099297,6.24546946,160.12,160.07,32.24722998]
[1746725099486,136.4,160.13,160.07,25.01469107]
[1746725099798,18.76746109,160.1,160.07,6.24722998]
[1746725100180,18.76746109,160.1,160.07,26.0]
[1746725100384,142.64500055,160.13,160.05,44.76746109]
[1746725100582,18.76746109,160.1,160.05,44.76746109]
[1746725100888,18.76746109,160.1,160.05,51.01523992]
[1746725102102,25.01361933,160.1,160.05,51.01523992]
[1746725102302,18.76746109,160.09,160.05,51.01523992]
[1746725102489,18.76746109,160.07,160.03,25.01618676]
[1746725102801,18.76746109,160.08,160.03,51.01618676]
[1746725103100,25.01460467,160.08,160.03,51.01618676]
[1746725103599,18.76746109,160.06,160.03,26.0]
[1746725103802,18.76746109,160.06,160.0,65.32]
[1746725103803,18.76746109,160.06,160.01,6.24935263]
[1746725104100,18.76746109,160.06,160.02,26.0]
[1746725104282,18.76746109,160.05,160.02,26.0]
[1746725104482,18.76746109,160.05,160.01,18.76746109]
[1746725104689,18.76746109,160.05,160.01,44.76746109]
[1746725105101,25.01565559,160.05,160.01,26.0]
[1746725105401,18.76746109,160.04,160.01,26.0]
[1746725105603,24.89691568,160.07,160.01,44.76746109]
[1746725105806,18.76746109,160.06,160.01,44.76746109]
[1746725106301,18.76746109,160.05,160.01,44.76746109]
[1746725106486,18.76746109,160.05,160.01,51.01703724]
[1746725107199,142.64691105,160.08,160.02,25.01641348]
[1746725107401,18.76746109,160.07,160.02,25.01641348]
[1746725107788,18.76746109,160.06,160.02,25.01641348]
[1746725110203,18.76746109,160.05,160.01,32.24948282]
[1746725110608,18.76746109,160.05,160.01,26.0]
[1746725110995,6.24773778,160.06,160.01,26.0]
[1746725111191,18.76746109,160.03,159.99,18.76746109]
[1746725111398,18.76746109,160.02,159.96,50.0]
[1746725111709,18.76746109,160.03,159.98,44.76746109]
[1746725111890,142.64773778,160.06,160.0,18.76746109]
[1746725112089,18.76746109,160.05,160.0,18.76746109]
[1746725112993,142.64773778,160.06,160.0,25.01713673]
[1746725113207,18.76746109,160.05,160.0,25.01713673]
[1746725113503,155.16746109,160.06,160.01,18.76746109]
[1746725113999,18.76746109,160.05,160.01,18.76746109]
[1746725114606,18.76746109,160.05,160.0,6.24967564]
[1746725114804,18.76746109,160.05,160.0,25.01713673]
[1746725115817,25.01559811,160.05,160.0,25.01713673]
[1746725116023,18.76746109,160.02,159.98,26.0]
[1746725116391,21.86825573,160.05,159.96,32.25143992]
[1746725116392,18.76746109,160.0,159.96,32.25143992]
[1746725117121,18.76746109,160.0,159.94,65.62999619]
[1746725117122,18.64964886,160.02,159.94,6.25219334]
[1746725117324,18.76746109,159.99,159.95,26.0]
[1746725118124,18.76746109,159.97,159.93,6.25259983]
[1746725118292,18.76746109,159.97,159.94,26.0]
[1746725118790,18.76746109,159.96,159.94,26.0]
[1746725118997,18.76746109,159.95,159.94,26.0]
[1746725119804,6.25078134,159.98,159.94,26.0]
[1746725120113,18.76746109,159.95,159.94,26.0]
[1746725120298,6.25078134,159.98,159.94,26.0]
[1746725120299,18.76746109,159.96,159.94,26.0]
[1746725120705,18.76746109,159.96,159.92,6.25301695]
[1746725121015,136.4,159.99,159.92,25.02047804]
[1746725121234,18.76746109,159.97,159.92,25.02047804]
[1746725121397,18.76746109,159.96,159.92,25.02047804]
[1746725121734,18.76746109,159.96,159.92,6.25301695]
[1746725121905,6.25093434,159.98,159.92,6.25301695]
[1746725122218,18.76746109,159.96,159.92,25.02047804]
[1746725122407,18.76746109,159.96,159.92,6.25301695]
[1746725122627,142.65050681,159.99,159.92,6.25301695]
[1746725122830,18.76746109,159.96,159.92,25.02047804]
[1746725123339,142.65048517,159.99,159.92,25.02047804]
[1746725123514,18.76746109,159.98,159.93,18.76746109]
[1746725124038,18.76746109,159.98,159.92,6.25301695]
[1746725124039,18.76746109,159.97,159.92,25.02047804]
[1746725124226,18.76746109,159.98,159.93,18.76746109]
[1746725124429,18.76746109,159.97,159.92,25.02047804]
[1746725124835,136.4,159.99,159.93,18.76746109]
[1746725125038,136.4,159.99,159.96,18.76746109]
[1746725125225,1.5187,160.03,159.97,25.01863318]
[1746725125541,20.28616109,160.03,159.98,18.76746109]
[1746725125745,18.76746109,160.02,159.98,18.76746109]
[1746725125944,18.60264702,160.02,159.97,6.25117209]
[1746725126120,18.76746109,160.01,159.97,6.25117209]
[1746725126320,18.76746109,160.02,159.97,25.01863318]
[1746725126516,18.76746109,160.03,159.99,18.76746109]
[1746725126721,136.4,160.04,160.0,18.76746109]
[1746725127449,136.4,160.04,160.01,6.24960939]
[1746725127943,155.16746109,160.04,160.0,6.24985238]
[1746725128650,136.4,160.04,160.01,18.76746109]
[1746725128847,136.4,160.04,160.0,6.24985238]
[1746725129141,18.76746109,160.01,159.97,26.0]
[1746725129439,18.76746109,160.02,159.97,44.76746109]
[1746725129645,136.4,160.03,160.0,18.76746109]
[1746725129817,136.4,160.03,159.97,32.25094157]
[1746725129818,136.4,160.03,159.97,26.0]
[1746725130018,18.76746109,160.02,159.98,18.76746109]
[1746725130219,18.76746109,160.02,159.97,44.76746109]
[1746725131250,18.76746109,159.99,159.94,44.76746109]
[1746725131447,6.25156289,159.96,159.89,11.25092281]
[1746725131647,25.01902398,159.96,159.89,17.50507318]
[1746725131850,18.76746109,159.94,159.9,18.76746109]
[1746725132350,18.76746109,159.94,159.9,44.76746109]
[1746725132538,6.25156289,159.96,159.91,18.76746109]
[1746725132726,25.01902398,159.96,159.91,18.76746109]
[1746725133243,18.76746109,159.94,159.9,26.0]
[1746725134253,25.01954597,159.95,159.9,51.02130775]
[1746725134749,25.01954597,159.95,159.9,44.76746109]
[1746725135549,18.76746109,159.95,159.91,18.76746109]
[1746725135749,26.58141946,159.96,159.92,18.76746109]
[1746725136446,6.25165837,159.96,159.92,18.76746109]
[1746725136950,18.76746109,159.97,159.92,18.76746109]
[1746725137155,25.01874734,159.97,159.92,18.76746109]
[1746725137757,25.01874734,159.97,159.92,25.02053187]
[1746725137941,25.01874734,159.97,159.93,18.76746109]
[1746725139040,142.65053131,159.99,159.94,18.76746109]
[1746725139360,155.16746109,159.99,159.95,18.76746109]
[1746725139653,18.76746109,159.98,159.94,18.76746109]
[1746725140550,25.01841383,159.98,159.94,18.76746109]
[1746725140956,25.01841383,159.98,159.93,51.02013005]
[1746725141159,25.01841383,159.98,159.93,44.76746109]
[1746725141539,25.01841383,159.98,159.93,51.02017672]
[1746725142042,25.01841383,159.98,159.94,18.76746109]
[1746725142755,142.6505303,159.99,159.94,25.01968151]
[1746725142956,161.41799139,159.99,159.94,25.01968151]
[1746725143156,161.41799139,159.99,159.94,18.76746109]
[1746725143349,18.76746109,159.98,159.94,18.76746109]
[1746725143843,18.76746109,159.98,159.93,51.0200761]
[1746725144251,25.0184311,159.98,159.93,51.0200761]
[1746725144448,25.0184311,159.98,159.94,18.76746109]
[1746725144964,6.25097001,159.98,159.94,18.76746109]
[1746725145157,136.4,159.99,159.93,32.25261501]
[1746725145158,142.65054795,159.99,159.93,32.25261501]
[1746725145352,161.41800904,159.99,159.95,18.76746109]
[1746725145665,136.4,159.99,159.95,18.76746109]
[1746725145862,136.4,159.99,159.98,18.76746109]
[1746725146068,7.91752576,160.0,159.98,18.76746109]
[1746725147354,7.91752576,160.0,159.99,18.76746109]
[1746725147763,6.24859975,160.04,159.99,30.00674257]
[1746725147969,36.25534232,160.04,159.99,30.00674257]
[1746725148361,36.25534232,160.04,159.97,50.0]
[1746725148362,6.24859975,160.04,160.0,30.00674257]
[1746725149069,36.25534232,160.04,159.99,30.00674257]
[1746725149457,151.72,160.06,160.0,30.00674257]
[1746725149657,30.00674257,160.05,160.0,30.00674257]
[1746725149856,151.72,160.06,160.01,30.00674257]
[1746725149857,136.4,160.06,160.01,30.00674257]
[1746725150061,136.4,160.06,160.02,30.00674257]
[1746725150248,31.59294257,160.08,160.03,30.00674257]
[1746725150449,45.32674257,160.09,160.04,30.00674257]
[1746725151171,21.56662793,160.09,160.04,30.00674257]
[1746725151468,4.75087926,160.12,160.06,30.00674257]
[1746725151469,30.00674257,160.11,160.06,30.00674257]
[1746725152363,30.00674257,160.11,160.03,50.14216157]
[1746725152364,136.4,160.15,160.08,30.00674257]
[1746725152671,136.4,160.15,160.07,6.24726682]
[1746725152672,7.91199626,160.12,160.07,6.24726682]
[1746725152858,30.00674257,160.11,160.07,36.25400939]
[1746725153053,37.91873883,160.12,160.07,36.25400939]
[1746725153468,30.00674257,160.11,160.07,6.24726682]
[1746725153660,30.00674257,160.11,160.07,36.25400939]
[1746725154151,30.00674257,160.12,160.07,36.25400939]
[1746725155048,30.00674257,160.13,160.08,30.00674257]
[1746725155859,136.4,160.15,160.1,30.00674257]
[1746725156071,30.00674257,160.14,160.1,30.00674257]
[1746725157066,136.4,160.15,160.11,26.0]
[1746725157383,136.4,160.15,160.11,56.00674257]
[1746725157878,166.40674257,160.15,160.11,56.00674257]
[1746725158178,136.4,160.15,160.12,30.00674257]
[1746725158360,166.40674257,160.15,160.11,56.00674257]
[1746725158779,136.4,160.15,160.11,56.00674257]
[1746725159479,136.4,160.15,160.11,62.25227873]
[1746725161107,7.87628362,160.19,160.13,30.00674257]
[1746725161393,7.87628362,160.19,160.15,30.00674257]
[1746725161792,37.88302619,160.19,160.15,30.00674257]
[1746725161984,30.00674257,160.18,160.14,30.00674257]
[1746725162402,7.87628362,160.19,160.15,30.00674257]
[1746725162594,30.00674257,160.18,160.14,30.00674257]
[1746725163102,30.00674257,160.18,160.14,6.24450291]
[1746725163286,30.00674257,160.18,160.14,36.25124548]
[1746725164101,30.00674257,160.18,160.12,6.24531601]
[1746725164292,30.00674257,160.18,160.14,30.00674257]
[1746725165081,136.4,160.21,160.15,30.00674257]
[1746725165286,136.4,160.21,160.13,6.24459532]
[1746725165287,7.90717409,160.24,160.2,30.00674257]
[1746725165482,152.00010199,160.26,160.16,56.00674257]
[1746725165483,6.24055178,160.25,160.22,30.00674257]
[1746725166199,136.4,160.26,160.24,30.00674257]
[1746725167282,136.4,160.26,160.21,6.24155564]
[1746725167474,136.4,160.26,160.22,30.00674257]
[1746725167692,172.6466775,160.26,160.22,30.00674257]
[1746725168390,142.63993493,160.26,160.22,30.00674257]
[1746725168597,30.00674257,160.24,160.2,26.0]
[1746725168803,142.63993493,160.26,160.21,30.00674257]
[1746725168804,30.00674257,160.25,160.21,30.00674257]
[1746725169007,6.24063904,160.24,160.21,30.00674257]
[1746725169379,6.24039547,160.25,160.21,30.00674257]